bitfinex-derivatives/quotes_BTCF0:USTF0_20240925
["timestamp","ask_amount","ask_price","bid_price","bid_amount"]
[1727228607728,0.07442493,64700.0,64686.0,0.3618]
[1727228607729,0.07442493,64699.0,64687.0,0.077291]
[1727228607934,0.10590111,64693.0,64686.0,0.3608]
[1727228608136,0.07442493,64692.0,64690.0,0.001]
[1727228608438,0.10590111,64695.0,64690.0,0.001]
[1727228608439,0.18032604,64691.0,64690.0,0.001]
[1727228608635,0.13095629,64691.0,64689.0,0.077288]
[1727228608936,0.02505518,64690.0,64689.0,0.077288]
[1727228609134,0.3608,64696.0,64689.0,0.077288]
[1727228609135,0.02505518,64695.0,64689.0,0.077288]
[1727228609327,0.001,64692.0,64686.0,0.3608]
[1727228609523,0.0919254,64690.0,64689.0,0.21]
[1727228609725,0.11698058,64691.0,64679.0,0.2298]
[1727228610030,0.5119398,64690.0,64689.0,0.002]
[1727228610235,0.56702133,64690.0,64689.0,0.002]
[1727228610454,0.68805118,64690.0,64689.0,0.002]
[1727228610628,0.56702133,64690.0,64689.0,0.00079657]
[1727228610829,0.56702133,64690.0,64678.0,0.16614355]
[1727228611027,0.10727332,64679.0,64678.0,0.16614355]
[1727228611325,0.0738528,64679.0,64678.0,0.16614355]
[1727228611526,0.1511528,64679.0,64678.0,0.16614355]
[1727228611931,0.1511528,64679.0,64678.0,0.17014355]
[1727228612130,0.25842612,64679.0,64678.0,0.17014355]
[1727228612433,0.26042612,64679.0,64678.0,0.16714355]
[1727228612627,0.1531528,64679.0,64678.0,0.16714355]
[1727228612827,0.1531528,64679.0,64678.0,0.001]
[1727228613035,0.0793,64679.0,64678.0,0.001]
[1727228613224,0.10436452,64679.0,64678.0,0.001]
[1727228613431,0.24051992,64679.0,64678.0,0.001]
[1727228613745,0.29765963,64679.0,64678.0,0.001]
[1727228613927,0.18126611,64679.0,64678.0,0.078302]
[1727228614137,0.13166405,64679.0,64678.0,0.078302]
[1727228614335,0.11243481,64679.0,64678.0,0.078302]
[1727228614529,0.11243446,64679.0,64678.0,0.439102]
[1727228614732,0.12273704,64686.0,64679.0,0.46384]
[1727228614941,0.0859129,64696.0,64685.0,0.077293]
[1727228615138,1.50088,64712.0,64685.0,0.077293]
[1727228615139,0.06138777,64711.0,64685.0,0.077293]
[1727228615333,0.06138777,64711.0,64682.0,0.21]
[1727228615334,0.077283,64694.0,64686.0,0.077292]
[1727228615935,0.21,64696.0,64681.0,0.077298]
[1727228616139,0.21,64696.0,64682.0,0.077297]
[1727228616435,0.077276,64700.0,64682.0,0.21]
[1727228616635,0.21,64706.0,64688.0,0.07729]
[1727228616827,0.1251,64703.0,64687.0,0.21]
[1727228617027,0.077272,64703.0,64692.0,0.3608]
[1727228617224,0.00088,64712.0,64706.0,0.077267]
[1727228617428,0.077258,64715.0,64706.0,0.077267]
[1727228617629,0.1241,64716.0,64706.0,0.077267]
[1727228618126,0.1241,64716.0,64705.0,0.3608]
[1727228618127,0.4863,64721.0,64708.0,0.21]
[1727228618742,0.3608,64715.0,64706.0,0.001]
[1727228618937,0.21,64713.0,64706.0,0.001]
[1727228620934,0.21,64713.0,64708.0,0.001]
[1727228621440,0.21,64713.0,64706.0,0.001]
[1727228621644,0.3608,64707.0,64706.0,0.001]
[1727228621841,0.077271,64704.0,64697.0,0.23708792]
[1727228622047,0.3608,64698.0,64692.0,0.00231866]
[1727228622344,0.11566888,64697.0,64692.0,0.00231866]
[1727228622528,0.11566888,64696.0,64692.0,0.00231866]
[1727228622844,0.3608,64698.0,64692.0,0.00231866]
[1727228622845,0.11566888,64695.0,64692.0,0.00231866]
[1727228623039,0.11566888,64694.0,64692.0,0.00231866]
[1727228623242,0.11566888,64693.0,64692.0,0.00231866]
[1727228624657,0.15953372,64693.0,64692.0,0.00231866]
[1727228625148,0.15953372,64693.0,64692.0,0.00531866]
[1727228625440,0.15953372,64693.0,64692.0,0.00231866]
[1727228626244,0.23237183,64693.0,64682.0,0.077296]
[1727228626543,0.3608,64687.0,64682.0,0.077296]
[1727228626738,0.23237183,64686.0,64682.0,0.077296]
[1727228626931,0.23237183,64685.0,64682.0,0.077296]
[1727228627236,0.23237183,64684.0,64682.0,0.077296]
[1727228627477,0.23237183,64683.0,64682.0,0.077296]
[1727228628248,0.23237183,64683.0,64682.0,0.67062464]
[1727228628448,0.15953372,64683.0,64682.0,0.67662464]
[1727228628644,0.23237183,64683.0,64682.0,0.67662464]
[1727228628846,0.15953372,64683.0,64682.0,0.67662464]
[1727228629048,0.15953372,64683.0,64682.0,0.67762464]
[1727228629733,0.18459174,64683.0,64682.0,0.68362464]
[1727228629936,0.5583535,64695.0,64689.0,0.077288]
[1727228629937,0.077283,64694.0,64689.0,0.077288]
[1727228630452,0.3608,64695.0,64689.0,0.077288]
[1727228631146,0.077283,64694.0,64686.0,0.077291]
[1727228631338,0.3608,64695.0,64682.0,0.087296]
[1727228631339,0.3608,64689.0,64682.0,0.087296]
[1727228631547,0.3608,64683.0,64682.0,0.087296]
[1727228631747,0.3608,64689.0,64688.0,0.07729]
[1727228631949,0.36958811,64698.0,64688.0,0.5708]
[1727228631950,0.3608,64698.0,64688.0,0.5708]
[1727228632160,0.438078,64698.0,64692.0,0.077285]
[1727228633048,0.3608,64696.0,64692.0,0.077285]
[1727228634448,0.3608,64696.0,64688.0,0.21]
[1727228634449,0.3608,64696.0,64695.0,0.077281]
[1727228635045,0.3608,64696.0,64691.0,0.077286]
[1727228635259,0.3608,64696.0,64695.0,0.077281]
[1727228637048,0.3608,64696.0,64690.0,0.077287]
[1727228637247,0.3608,64696.0,64691.0,0.079286]
[1727228637657,0.3608,64696.0,64691.0,0.077286]
[1727228638054,0.3608,64696.0,64687.0,0.07729]
[1727228638358,0.3608,64690.0,64689.0,0.077289]
[1727228639265,0.06159851,64702.0,64689.0,0.077289]
[1727228639266,0.06159851,64706.0,64690.0,0.077287]
[1727228639449,0.06159851,64717.0,64711.0,0.077262]
[1727228639652,0.20139851,64718.0,64713.0,0.07726]
[1727228639853,0.20139851,64718.0,64705.0,0.3608]
[1727228639854,0.1398,64718.0,64711.0,0.3608]
[1727228640053,0.1398,64718.0,64715.0,0.077257]
[1727228640356,0.1398,64718.0,64711.0,0.3608]
[1727228641662,0.21,64712.0,64711.0,0.3608]
[1727228641854,0.21,64712.0,64711.0,0.3618]
[1727228642071,0.4636,64712.0,64711.0,0.3618]
[1727228642463,0.06159851,64716.0,64711.0,0.3618]
[1727228643164,0.06159851,64714.0,64711.0,0.3618]
[1727228643352,0.1455,64713.0,64711.0,0.3618]
[1727228643864,0.1455,64713.0,64711.0,0.001]
[1727228644366,0.5063,64713.0,64711.0,0.001]
[1727228644553,0.1455,64713.0,64711.0,0.001]
[1727228644868,0.3608,64712.0,64711.0,0.001]
[1727228645169,0.077262,64711.0,64701.0,0.077274]
[1727228645463,0.3608,64702.0,64698.0,0.077278]
[1727228645653,0.24984942,64701.0,64698.0,0.077278]
[1727228645858,0.24984942,64700.0,64698.0,0.077278]
[1727228646079,0.24984942,64699.0,64698.0,0.077278]
[1727228646267,0.45014664,64699.0,64695.0,0.3608]
[1727228646453,0.61064942,64698.0,64694.0,0.077282]
[1727228646659,0.81094664,64698.0,64695.0,0.077281]
[1727228647057,0.81094664,64698.0,64697.0,0.07959749]
[1727228647881,0.79945987,64698.0,64697.0,0.07959749]
[1727228648067,0.59916265,64698.0,64697.0,0.07959749]
[1727228648257,0.60016265,64698.0,64697.0,0.07959749]
[1727228648666,0.59916265,64698.0,64697.0,0.07959749]
[1727228648868,0.60116265,64698.0,64697.0,0.07959749]
[1727228649864,0.24036265,64698.0,64697.0,0.07959749]
[1727228651478,0.23936265,64698.0,64697.0,0.07959749]
[1727228651869,0.23836265,64698.0,64697.0,0.07959749]
[1727228652074,0.001,64698.0,64697.0,0.07959749]
[1727228652472,0.3608,64701.0,64697.0,0.07959749]
[1727228652673,0.07729,64688.0,64684.0,0.04695038]
[1727228652967,0.07729,64688.0,64681.0,0.06422998]
[1727228652968,0.3608,64686.0,64679.0,0.04547038]
[1727228653168,0.3608,64680.0,64675.0,0.12277538]
[1727228653371,0.077295,64684.0,64675.0,0.12277538]
[1727228653574,0.077295,64684.0,64675.0,0.077305]
[1727228655281,0.077295,64684.0,64675.0,0.087305]
[1727228655672,0.077297,64682.0,64675.0,0.087305]
[1727228655972,0.3608,64685.0,64675.0,0.01]
[1727228656670,0.5708,64685.0,64675.0,0.01]
[1727228657067,0.077299,64680.0,64675.0,0.01]
[1727228657675,0.3608,64676.0,64667.0,0.07963455]
[1727228657871,0.3608,64676.0,64675.0,0.01]
[1727228658071,0.438104,64676.0,64675.0,0.01]
[1727228658281,1.42464,64676.0,64661.0,0.04547038]
[1727228658475,1.42464,64676.0,64658.0,0.12279538]
[1727228658476,0.3608,64666.0,64658.0,0.12279538]
[1727228658882,0.3608,64666.0,64658.0,0.077325]
[1727228659077,0.3608,64659.0,64654.0,0.04547038]
[1727228659277,0.438124,64659.0,64649.0,0.077335]
[1727228659489,0.438124,64659.0,64648.0,0.00232025]
[1727228659490,0.3608,64653.0,64648.0,0.00232025]
[1727228659691,0.3608,64653.0,64649.0,0.23195277]
[1727228659896,0.438132,64653.0,64649.0,0.23195277]
[1727228660077,0.07690881,64651.0,64648.0,0.00232025]
[1727228660276,0.07690649,64649.0,64648.0,0.00232025]
[1727228660678,0.07690649,64651.0,64648.0,0.00232025]
[1727228660879,0.3608,64653.0,64648.0,0.00232025]
[1727228660880,0.07690649,64652.0,64648.0,0.00232025]
[1727228661085,0.3608,64653.0,64648.0,0.00232025]
[1727228661086,0.06147125,64650.0,64648.0,0.00232025]
[1727228661285,0.06147125,64650.0,64648.0,0.01532025]
[1727228662082,0.001,64651.0,64648.0,0.01532025]
[1727228662289,0.06147125,64652.0,64648.0,0.00232025]
[1727228663192,0.3608,64653.0,64646.0,0.07734]
[1727228664692,0.3608,64647.0,64646.0,0.07734]
[1727228665490,0.3608,64647.0,64646.0,0.09134]
[1727228665687,0.3608,64647.0,64646.0,0.014]
[1727228665994,0.001,64647.0,64646.0,0.014]
[1727228666991,0.001,64647.0,64646.0,0.09134]
[1727228667392,0.3608,64652.0,64646.0,0.09134]
[1727228667595,0.3608,64652.0,64646.0,0.014]
[1727228668289,0.077339,64647.0,64646.0,0.014]
[1727228668490,0.077341,64645.0,64641.0,0.3608]
[1727228669692,0.078341,64645.0,64641.0,0.3748]
[1727228671294,0.077342,64644.0,64641.0,0.3748]
[1727228671898,0.438142,64644.0,64641.0,0.014]
[1727228672399,0.3608,64644.0,64641.0,0.014]
[1727228672587,0.14,64642.0,64641.0,0.014]
[1727228672795,0.217346,64642.0,64641.0,0.014]
[1727228673793,0.077348,64639.0,64634.0,0.3608]
[1727228675092,0.078348,64639.0,64634.0,0.3678]
[1727228677404,0.001,64639.0,64634.0,0.3678]
[1727228678703,0.078348,64639.0,64634.0,0.3678]
[1727228678899,0.077351,64637.0,64634.0,0.3678]
[1727228679099,0.3618,64639.0,64634.0,0.3678]
[1727228679100,0.3618,64639.0,64634.0,0.007]
[1727228679308,0.077353,64635.0,64628.0,0.077361]
[1727228679604,0.3608,64630.0,64628.0,0.077361]
[1727228680293,0.3608,64630.0,64624.0,0.077366]
[1727228680931,0.3608,64630.0,64628.0,0.003]
[1727228681406,0.3618,64630.0,64625.0,0.077365]
[1727228681589,0.001,64630.0,64627.0,0.14]
[1727228682001,0.001,64630.0,64628.0,0.003]
[1727228682195,0.001,64630.0,64629.0,0.43816]
[1727228682402,0.001,64630.0,64629.0,0.07736]
[1727228682700,0.001,64630.0,64629.0,0.43816]
[1727228683000,0.001,64630.0,64629.0,0.07736]
[1727228684501,0.3493,64631.0,64630.0,0.077359]
[1727228686206,0.37247689,64631.0,64630.0,0.003]
[1727228686409,0.73327689,64631.0,64630.0,0.003]
[1727228689108,0.65591889,64631.0,64630.0,0.003]
[1727228689298,0.65591889,64631.0,64630.0,0.14098898]
[1727228689807,0.24091889,64631.0,64630.0,0.080359]
[1727228690411,0.24091889,64631.0,64630.0,0.25427318]
[1727228690806,0.19448171,64631.0,64630.0,0.17899392]
[1727228691328,0.19448171,64631.0,64630.0,0.41085113]
[1727228695804,0.14808171,64631.0,64630.0,0.41085113]
[1727228696009,0.14808171,64631.0,64630.0,0.50046819]
[1727228696214,0.14808171,64631.0,64630.0,0.41085113]
[1727228696406,0.14808171,64631.0,64630.0,0.50210968]
[1727228696713,0.14808171,64631.0,64630.0,0.41085113]
[1727228696913,0.3608,64654.0,64630.0,1.87545297]
[1727228697208,0.3608,64654.0,64650.0,0.077335]
[1727228697406,0.4614,64651.0,64650.0,0.12295792]
[1727228697613,0.47006717,64651.0,64650.0,0.12295792]
[1727228698212,0.54740117,64651.0,64650.0,0.12295504]
[1727228698412,0.56140117,64651.0,64650.0,0.12295504]
[1727228699120,0.56140117,64651.0,64650.0,0.12294818]
[1727228699424,0.56140117,64651.0,64650.0,0.077335]
[1727228700919,0.56140117,64651.0,64644.0,0.06082952]
[1727228700920,0.077336,64649.0,64644.0,0.06082952]
[1727228701118,0.077336,64649.0,64635.0,0.07603821]
[1727228701119,0.077351,64637.0,64635.0,0.07603821]
[1727228701433,0.177951,64637.0,64632.0,0.07603821]
[1727228701720,0.077352,64636.0,64631.0,0.15339621]
[1727228701914,0.077352,64636.0,64631.0,0.077358]
[1727228702109,0.238,64637.0,64631.0,0.077358]
[1727228702517,0.077352,64636.0,64630.0,0.3608]
[1727228703021,0.438157,64632.0,64631.0,0.23429477]
[1727228703204,0.438157,64632.0,64631.0,0.003]
[1727228703205,0.538757,64632.0,64631.0,0.003]
[1727228703404,0.538757,64632.0,64626.0,0.04567493]
[1727228703405,1.58703125,64632.0,64626.0,0.04567493]
[1727228703721,0.14,64627.0,64625.0,0.04567493]
[1727228703908,0.077365,64625.0,64623.0,0.04567493]
[1727228704116,0.217366,64624.0,64622.0,0.04567493]
[1727228704415,0.217366,64624.0,64615.0,0.3608]
[1727228704416,0.14,64623.0,64621.0,0.04567493]
[1727228704621,0.217368,64623.0,64621.0,0.04567493]
[1727228705113,0.578168,64623.0,64619.0,0.04567493]
[1727228705304,0.5012,64626.0,64620.0,0.04567493]
[1727228705305,0.1404,64626.0,64620.0,0.04567493]
[1727228705507,0.001,64624.0,64622.0,0.003]
[1727228706008,0.001,64624.0,64623.0,0.04566426]
[1727228706208,0.001,64623.0,64622.0,0.04566426]
[1727228706409,0.3618,64623.0,64622.0,0.04566426]
[1727228706807,0.3618,64623.0,64621.0,0.04866426]
[1727228707212,0.3618,64623.0,64621.0,0.003]
[1727228707516,0.4624,64623.0,64621.0,0.003]
[1727228707720,0.4624,64623.0,64616.0,0.3608]
[1727228707721,0.07737,64621.0,64615.0,0.04566426]
[1727228707914,0.07737,64621.0,64614.0,0.04566426]
[1727228707915,0.3608,64616.0,64614.0,0.04566426]
[1727228708113,0.3608,64616.0,64613.0,0.04566426]
[1727228708416,0.3608,64616.0,64614.0,0.23334278]
[1727228709205,0.3618,64616.0,64614.0,0.23334278]
[1727228710422,0.00954882,64616.0,64614.0,0.23334278]
[1727228710716,0.3608,64615.0,64614.0,0.23334278]
[1727228711113,0.00954882,64616.0,64614.0,0.23334278]
[1727228711321,0.3608,64615.0,64614.0,0.23334278]
[1727228711621,0.00954882,64616.0,64614.0,0.23334278]
[1727228712414,0.00954882,64616.0,64614.0,0.31072078]
[1727228712614,0.37034882,64616.0,64614.0,0.31072078]
[1727228712813,0.00954882,64616.0,64614.0,0.31072078]
[1727228713014,0.37034882,64616.0,64614.0,0.31072078]
[1727228713311,0.37034882,64616.0,64615.0,0.217377]
[1727228713312,0.001,64616.0,64615.0,0.217377]
[1727228713514,0.077364,64626.0,64619.0,0.077372]
[1727228713746,0.00844221,64624.0,64620.0,0.14]
[1727228714527,0.00844221,64624.0,64622.0,0.077369]
[1727228714728,0.1016,64623.0,64622.0,0.077369]
[1727228715325,0.1016,64623.0,64620.0,0.36228]
[1727228715518,0.1016,64623.0,64620.0,0.3608]
[1727228717051,0.3608,64641.0,64622.0,0.5008]
[1727228717219,0.3608,64641.0,64637.0,0.14]
[1727228717519,0.3608,64641.0,64633.0,0.14]
[1727228718025,0.3608,64641.0,64631.0,0.23277761]
[1727228718221,0.3608,64641.0,64631.0,0.077357]
[1727228718425,0.3658,64641.0,64632.0,0.30806034]
[1727228718726,0.3658,64641.0,64632.0,0.077356]
[1727228718922,0.3608,64634.0,64633.0,0.001]
[1727228719339,1.4908628,64634.0,64622.0,0.00136]
[1727228719522,0.14,64623.0,64615.0,0.439577]
[1727228719826,0.14,64623.0,64616.0,0.30825493]
[1727228719827,0.09244005,64618.0,64616.0,0.30825493]
[1727228720557,0.09244005,64618.0,64617.0,0.077375]
[1727228720717,0.09244005,64619.0,64618.0,0.077373]
[1727228720912,0.001,64618.0,64617.0,0.14]
[1727228721124,0.001,64618.0,64617.0,0.817375]
[1727228721325,0.001,64618.0,64617.0,1.66156277]
[1727228722326,0.07702795,64622.0,64621.0,0.07737]
[1727228722522,0.07702795,64622.0,64621.0,0.43817]
[1727228722721,0.07702795,64622.0,64621.0,0.67084112]
[1727228723327,0.07702795,64623.0,64622.0,0.077369]
[1727228723713,0.07702795,64623.0,64621.0,0.59347112]
[1727228723714,0.09244005,64627.0,64624.0,0.077366]
[1727228723923,0.09244005,64627.0,64625.0,0.077365]
[1727228724929,0.11752163,64627.0,64625.0,0.077365]
[1727228725130,0.02508158,64626.0,64625.0,0.077365]
[1727228726233,0.11752163,64626.0,64625.0,0.077365]
[1727228727129,0.02508158,64626.0,64621.0,0.3608]
[1727228727325,0.14,64625.0,64619.0,0.077372]
[1727228727730,0.3608,64622.0,64619.0,0.077372]
[1727228728124,0.3608,64622.0,64616.0,0.04553827]
[1727228728430,0.3608,64622.0,64612.0,0.00232147]
[1727228728431,0.3608,64622.0,64615.0,0.04553827]
[1727228728633,0.3608,64622.0,64617.0,0.23348568]
[1727228728835,0.3608,64622.0,64619.0,0.001]
[1727228729130,0.14,64620.0,64619.0,0.001]
[1727228729335,0.14,64620.0,64616.0,0.001]
[1727228729531,0.077375,64617.0,64616.0,0.001]
[1727228730530,0.14,64620.0,64604.0,0.077389]
[1727228730531,0.06167157,64618.0,64604.0,0.077389]
[1727228730861,0.3608,64611.0,64604.0,0.077389]
[1727228731227,0.14,64608.0,64603.0,0.04553827]
[1727228731429,0.14,64608.0,64602.0,0.04553827]
[1727228731829,0.14,64608.0,64602.0,0.27702513]
[1727228732030,0.14,64608.0,64601.0,0.077394]
[1727228732031,0.3618,64611.0,64604.0,0.001]
[1727228732229,0.077394,64601.0,64598.0,0.16635521]
[1727228732427,0.5008,64599.0,64598.0,0.16635521]
[1727228732619,0.3608,64599.0,64598.0,0.16635521]
[1727228732934,0.5008,64599.0,64591.0,0.0023223]
[1727228733118,0.14,64592.0,64591.0,0.0023223]
[1727228733325,0.3608,64599.0,64591.0,0.0023223]
[1727228733527,0.14,64593.0,64591.0,0.0023223]
[1727228734230,0.3608,64599.0,64591.0,0.0023223]
[1727228734531,0.36951327,64599.0,64591.0,0.0797283]
[1727228735127,0.001,64593.0,64591.0,0.0797283]
[1727228735632,0.37051327,64599.0,64591.0,0.0797283]
[1727228735824,0.37051327,64599.0,64594.0,0.077402]
[1727228737231,0.36951327,64599.0,64594.0,0.077402]
[1727228737627,0.36951327,64599.0,64588.0,0.077408]
[1727228738126,0.36951327,64599.0,64584.0,0.3608]
[1727228738127,0.21,64597.0,64584.0,0.3608]
[1727228738435,0.3608,64591.0,64584.0,0.3608]
[1727228738822,0.077407,64590.0,64584.0,0.3608]
[1727228739024,0.3608,64591.0,64583.0,0.077415]
[1727228740031,0.36928989,64591.0,64583.0,0.077415]
[1727228740239,0.44669589,64591.0,64583.0,0.077415]
[1727228740429,0.077407,64590.0,64577.0,0.00232279]
[1727228740835,0.077407,64590.0,64580.0,0.077418]
[1727228741227,0.077407,64590.0,64581.0,0.23241432]
[1727228741940,0.078407,64590.0,64581.0,0.23241432]
[1727228743536,0.3608,64585.0,64581.0,0.23241432]
[1727228743842,0.077421,64578.0,64577.0,0.00232279]
[1727228744041,0.438221,64578.0,64577.0,0.00232279]
[1727228745437,0.077424,64576.0,64570.0,0.077431]
[1727228745636,0.077424,64576.0,64566.0,0.077435]
[1727228746031,0.3608,64570.0,64569.0,0.23119472]
[1727228746229,0.3608,64570.0,64560.0,0.1409]
[1727228746738,0.21,64569.0,64562.0,0.23332974]
[1727228746933,0.3608,64563.0,64556.0,0.077447]
[1727228747537,0.3608,64563.0,64553.0,0.00232343]
[1727228747538,0.43824,64563.0,64553.0,0.00232343]
[1727228747738,0.21,64562.0,64553.0,0.00232343]
[1727228748146,0.3608,64563.0,64561.0,0.077441]
[1727228748327,0.36937866,64563.0,64556.0,0.21]
[1727228748645,0.37037866,64563.0,64557.0,0.077446]
[1727228749141,0.37037866,64563.0,64550.0,0.3608]
[1727228749142,0.21,64562.0,64550.0,0.3608]
[1727228749335,0.3608,64556.0,64550.0,0.3608]
[1727228749732,0.3608,64556.0,64544.0,0.438262]
[1727228749928,0.3608,64548.0,64537.0,0.00232419]
[1727228750227,0.3608,64548.0,64541.0,0.2316404]
[1727228750459,0.3608,64548.0,64542.0,0.21]
[1727228750843,0.3608,64548.0,64543.0,0.23231734]
[1727228751540,0.3618,64548.0,64543.0,0.23231734]
[1727228752039,0.3618,64548.0,64547.0,0.077459]
[1727228753237,0.001,64548.0,64547.0,0.077459]
[1727228753434,0.00864956,64553.0,64548.0,0.077457]
[1727228753633,0.001,64548.0,64547.0,0.077459]
[1727228753840,0.3608,64556.0,64546.0,0.21]
[1727228754344,0.001,64548.0,64547.0,0.077459]
[1727228755743,0.001,64548.0,64542.0,0.077464]
[1727228756046,0.001,64548.0,64542.0,0.30950811]
[1727228756444,0.3608,64549.0,64542.0,0.30950811]
[1727228756645,0.36928544,64549.0,64542.0,0.30950811]
[1727228757148,0.001,64548.0,64542.0,0.23204411]
[1727228757470,0.001,64548.0,64537.0,0.00232419]
[1727228757637,0.3608,64542.0,64537.0,0.00232419]
[1727228757838,0.077463,64543.0,64538.0,0.23131822]
[1727228758046,0.077463,64543.0,64537.0,0.00232419]
[1727228758348,0.3608,64540.0,64537.0,0.00232419]
[1727228758548,0.32204465,64540.0,64537.0,0.00232419]
[1727228758943,0.077463,64543.0,64537.0,0.00232419]
[1727228760036,0.14,64545.0,64537.0,0.00232419]
[1727228760037,0.14,64545.0,64538.0,0.077469]
[1727228760244,0.001,64548.0,64543.0,0.077463]
[1727228760637,0.36928544,64549.0,64547.0,0.14]
[1727228761244,0.36928544,64549.0,64548.0,0.077457]
[1727228761746,0.1397,64562.0,64549.0,0.077456]
[1727228761942,0.3608,64563.0,64561.0,0.14]
[1727228762552,0.3608,64563.0,64558.0,0.14]
[1727228762848,0.077443,64560.0,64558.0,0.14]
[1727228763038,0.077443,64560.0,64554.0,0.21745]
[1727228764048,0.36927501,64563.0,64554.0,0.21745]
[1727228764237,0.36927501,64563.0,64550.0,0.04553827]
[1727228764442,0.36927501,64563.0,64549.0,0.217456]
[1727228764443,0.14,64557.0,64549.0,0.077456]
[1727228764645,0.14,64557.0,64548.0,0.36216]
[1727228764646,0.077454,64551.0,64550.0,0.23153098]
[1727228764838,0.14,64552.0,64541.0,0.42278336]
[1727228764839,0.077465,64542.0,64541.0,0.00136]
[1727228765036,0.077465,64542.0,64537.0,0.00232419]
[1727228765037,0.3608,64542.0,64537.0,0.00232419]
[1727228765237,0.077454,64551.0,64537.0,0.00232419]
[1727228765238,0.438269,64538.0,64537.0,0.00232419]
[1727228765539,0.3608,64538.0,64526.0,0.04553827]
[1727228765748,0.3608,64538.0,64519.0,0.081092]
[1727228765749,0.3608,64532.0,64524.0,0.04553827]
[1727228765939,0.3608,64532.0,64525.0,0.23242795]
[1727228766166,0.3608,64532.0,64521.0,0.14]
[1727228766337,0.077482,64528.0,64517.0,0.04553827]
[1727228766549,0.3608,64526.0,64517.0,0.04553827]
[1727228767057,0.438284,64526.0,64517.0,0.04553827]
[1727228767252,0.438284,64526.0,64516.0,0.04553827]
[1727228767441,0.438284,64526.0,64515.0,0.04553827]
[1727228767848,0.21,64522.0,64515.0,0.04553827]
[1727228768148,0.3608,64526.0,64513.0,0.3608]
[1727228768149,0.21,64516.0,64513.0,0.3608]
[1727228768348,0.3608,64514.0,64511.0,0.04553827]
[1727228768547,0.3608,64514.0,64505.0,0.04786343]
[1727228768548,0.21,64512.0,64505.0,0.04786343]
[1727228768757,0.3608,64507.0,64506.0,0.23247854]
[1727228768948,0.287501,64512.0,64504.0,0.04553827]
[1727228769155,0.3608,64508.0,64504.0,0.04553827]
[1727228769351,0.3608,64508.0,64506.0,0.23247854]
[1727228769651,0.3608,64508.0,64505.0,0.04553827]
[1727228769856,0.3608,64508.0,64503.0,0.0015764]
[1727228770057,0.5708,64508.0,64503.0,0.0015764]
[1727228770243,1.03588,64508.0,64503.0,0.0015764]
[1727228770449,0.5708,64508.0,64503.0,0.0015764]
[1727228771458,0.5718,64508.0,64503.0,0.0015764]
[1727228771658,0.3618,64508.0,64503.0,0.0015764]
[1727228771849,0.001,64508.0,64503.0,0.0015764]
[1727228772155,0.3608,64514.0,64505.0,0.3608]
[1727228772453,0.3608,64514.0,64509.0,0.077504]
[1727228772645,0.3608,64517.0,64509.0,0.04553827]
[1727228772853,0.3608,64517.0,64508.0,0.04553827]
[1727228773360,0.3608,64517.0,64511.0,0.04553827]
[1727228773563,0.001,64514.0,64511.0,0.04553827]
[1727228773765,0.001,64514.0,64512.0,0.04553827]
[1727228774066,0.31527509,64517.0,64514.0,0.077498]
[1727228774252,0.31627509,64517.0,64514.0,0.077498]
[1727228774865,0.31527509,64517.0,64515.0,0.077497]
[1727228775155,0.00853264,64525.0,64512.0,0.04553827]
[1727228775362,0.00853264,64525.0,64516.0,0.04553827]
[1727228775559,0.649079,64530.0,64517.0,0.04553827]
[1727228775753,0.648279,64530.0,64521.0,0.07749]
[1727228776157,0.6385,64533.0,64523.0,0.3608]
[1727228776460,0.715976,64533.0,64523.0,0.3608]
[1727228776663,0.499,64533.0,64523.0,0.5708]
[1727228776870,0.499,64533.0,64530.0,0.077479]
[1727228777164,0.499,64533.0,64528.0,0.077481]
[1727228777165,0.001,64530.0,64528.0,0.077481]
[1727228777351,0.001,64530.0,64527.0,0.04553827]
[1727228777552,0.001,64530.0,64523.0,0.36224]
[1727228777553,0.001,64530.0,64525.0,0.12302227]
[1727228777754,0.438275,64533.0,64525.0,0.12302227]
[1727228777959,0.439275,64533.0,64525.0,0.077484]
[1727228778456,0.3608,64526.0,64524.0,0.04553827]
[1727228778659,0.3608,64526.0,64523.0,0.001]
[1727228778660,0.077485,64525.0,64523.0,0.001]
[1727228779286,0.438286,64524.0,64523.0,0.001]
[1727228779567,0.287486,64524.0,64523.0,0.001]
[1727228779750,0.648286,64524.0,64523.0,0.001]
[1727228780164,0.648286,64524.0,64516.0,0.04553827]
[1727228780354,0.5708,64524.0,64515.0,0.04553827]
[1727228780661,0.21,64518.0,64513.0,0.04553827]
[1727228780863,0.21,64518.0,64512.0,0.12439927]
[1727228781052,0.21,64518.0,64512.0,0.12303927]
[1727228781249,0.21,64518.0,64511.0,0.04553827]
[1727228781453,0.21,64513.0,64510.0,0.04553827]
[1727228781750,0.21,64513.0,64508.0,0.04553827]
[1727228782055,0.3608,64517.0,64507.0,0.00232533]
[1727228782251,0.077496,64516.0,64512.0,0.001]
[1727228782453,0.077497,64515.0,64512.0,0.001]
[1727228782685,0.077499,64513.0,64512.0,0.001]
[1727228783082,1.06504,64513.0,64512.0,0.001]
[1727228783267,1.142539,64513.0,64512.0,0.001]
[1727228783796,1.06504,64513.0,64503.0,0.0472339]
[1727228783955,0.43831,64504.0,64503.0,0.0015764]
[1727228784358,1.50339,64504.0,64503.0,0.0015764]
[1727228785365,1.50339,64504.0,64491.0,0.077526]
[1727228785366,1.78668,64504.0,64490.0,0.0456575]
[1727228785561,1.78668,64504.0,64481.0,0.3608]
[1727228785562,0.5708,64491.0,64480.0,0.1231965]
[1727228785752,0.5708,64491.0,64484.0,0.0456575]
[1727228785957,0.5708,64491.0,64473.0,0.439787]
[1727228785958,0.21,64485.0,64482.0,0.0456575]
[1727228786153,0.21,64485.0,64477.0,0.06086153]